fUSD/lending_fUSD_20240119
["ID","MTS","AMOUNT","RATE_DAILY","PERIOD"]
[312207698,1705685452473,-500.0,0.00024931,2]
[312207700,1705685452483,-500.0,0.00024931,2]
[312207702,1705685452493,-500.0,0.00024931,2]
[312207704,1705685452502,-500.0,0.00024931,2]
[312207706,1705685452512,-500.0,0.00024931,2]
[312207708,1705685452521,-509.99,0.00024931,2]
[312207710,1705685452531,-500.0,0.00024931,2]
[312207712,1705685452541,-500.0,0.00024931,2]
[312207714,1705685452550,-500.0,0.00024931,2]
[312207716,1705685452559,-500.0,0.00024931,2]
[312207718,1705685452568,-707.43,0.00024931,2]
[312207720,1705685452578,-500.0,0.00024931,2]
[312207722,1705685452588,-500.0,0.00024931,2]
[312207724,1705685452597,-500.0,0.00024931,2]
[312207726,1705685452606,-500.0,0.00024931,2]
[312207728,1705685452616,-500.0,0.00024931,2]
[312207730,1705685452625,-500.0,0.00024931,2]
[312207732,1705685452634,-500.0,0.00024931,2]
[312207734,1705685452645,-852.84,0.00024931,2]
[312207736,1705685452655,-418.71270679,0.00024931,2]
[312207738,1705685452665,-622.55,0.00024931,2]
[312207740,1705685452674,-500.0,0.00024931,2]
[312207742,1705685452684,-500.0,0.00024931,5]
[312207744,1705685452693,-500.0,0.00024931,2]
[312207745,1705685452702,-500.0,0.00024931,2]
[312207746,1705685452712,-500.0,0.00024931,2]
[312207747,1705685452721,-500.0,0.00024931,2]
[312207748,1705685452731,-500.0,0.00024931,2]
[312207749,1705685452741,-500.0,0.00024931,2]
[312207751,1705685452751,-500.0,0.00024931,2]
[312207753,1705685452761,-500.0,0.00024931,2]
[312207755,1705685452771,-500.0,0.00024931,2]
[312207757,1705685452781,-500.0,0.00024931,2]
[312207759,1705685452790,-500.0,0.00024931,2]
[312207760,1705685452801,-500.0,0.00024931,2]
[312207762,1705685452810,-500.0,0.00024931,2]
[312207764,1705685452821,-500.0,0.00024931,2]
[312207766,1705685452830,-500.0,0.00024931,2]
[312207768,1705685452841,-500.0,0.00024931,2]
[312207770,1705685452852,-2113.32,0.00024931,2]
[312207772,1705685452862,-500.0,0.00024931,2]
[312207774,1705685452872,-500.0,0.00024931,2]
[312207776,1705685452881,-500.0,0.00024931,2]
[312207778,1705685452891,-1232.13,0.00024931,2]
[312207780,1705685452900,-500.0,0.00024931,2]
[312207782,1705685452910,-500.0,0.00024931,2]
[312207784,1705685452919,-500.0,0.00024931,2]
[312207786,1705685452929,-500.0,0.00024931,2]
[312207788,1705685452938,-500.0,0.00024931,2]
[312207790,1705685452948,-636.92211625,0.00024931,2]
[312207793,1705685452958,-500.0,0.00024931,2]
[312207795,1705685452968,-500.0,0.00024931,2]
[312207797,1705685452979,-500.0,0.00024931,2]
[312207798,1705685452988,-500.0,0.00024931,2]
[312207800,1705685452998,-500.0,0.00024931,2]
[312207802,1705685453010,-500.0,0.00024931,2]
[312207805,1705685453021,-500.0,0.00024931,2]
[312207807,1705685453031,-500.0,0.00024931,2]
[312207809,1705685453040,-500.0,0.00024931,2]
[312207811,1705685453050,-500.0,0.00024931,2]
[312207813,1705685453060,-500.0,0.00024931,2]
[312207815,1705685453070,-500.0,0.00024931,2]
[312207817,1705685453079,-1241.61,0.00024931,2]
[312207819,1705685453090,-1563.22,0.00024931,2]
[312207821,1705685453101,-500.0,0.00024931,2]
[312207823,1705685453111,-500.0,0.00024931,2]
[312207825,1705685453122,-500.0,0.00024931,2]
[312207826,1705685453131,-500.0,0.00024939,2]
[312207829,1705685453141,-500.0,0.00024939,2]
[312207831,1705685453152,-500.0,0.00024939,2]
[312207833,1705685453162,-500.0,0.00024939,2]
[312207835,1705685453172,-557.40472766,0.00024939,2]
[312207837,1705685453182,-500.0,0.00024939,2]
[312207838,1705685453192,-500.0,0.00024939,2]
[312207841,1705685453202,-500.0,0.00024939,2]
[312207843,1705685453212,-500.0,0.00024939,2]
[312207844,1705685453222,-500.0,0.00024939,2]
[312207847,1705685453231,-500.0,0.00024939,2]
[312207849,1705685453242,-500.0,0.00024939,2]
[312207850,1705685453251,-500.0,0.00024939,2]
[312207853,1705685453269,-500.0,0.00024939,2]
[312207855,1705685453279,-302.69627964,0.00024939,2]
[312207857,1705685453289,-500.0,0.00024939,2]
[312207859,1705685453298,-500.0,0.00024939,2]
[312207860,1705685453309,-500.0,0.00024939,2]
[312207861,1705685453318,-500.0,0.00024939,2]
[312207862,1705685453327,-500.0,0.00024939,2]
[312207863,1705685453336,-500.0,0.00024939,2]
[312207864,1705685453345,-500.0,0.00024939,2]
[312207865,1705685453354,-500.0,0.00024939,2]
[312207866,1705685453363,-500.0,0.00024939,2]
[312207867,1705685453372,-500.0,0.00024939,2]
[312207869,1705685453382,-500.0,0.00024939,2]
[312207871,1705685453392,-500.0,0.00024939,2]
[312207873,1705685453402,-500.0,0.00024939,2]
[312207875,1705685453411,-500.0,0.00024939,2]
[312207877,1705685453421,-500.0,0.00024939,2]
[312207879,1705685453431,-171.94541592,0.00024968,2]
[312207882,1705685453442,-158.69157594,0.00025,2]
[312207884,1705685453454,-202.05640348,0.00025,2]
[312207886,1705685453463,-2397.58905355,0.00025,2]
[312207888,1705685453473,-303.51189486,0.00025,2]
[312207890,1705685453483,-3040.99663401,0.00025,2]
[312207892,1705685453493,-933.81243155,0.00025,2]
[312207894,1705685453507,-167.40543921,0.00025,2]
[312207896,1705685453516,-150.0,0.00025,2]
[312207898,1705685453525,-3000.0,0.00025,2]
[312207900,1705685453536,-188.90758242,0.00025027,2]
[312207902,1705685453545,-167.0,0.00025099,2]
[312207903,1705685453555,-151.9905901,0.00025123,2]
[312207906,1705685453565,-314.87,0.00025205,2]
[312207907,1705685453574,-500.0,0.00025205,2]
[312207910,1705685453584,-218.46,0.00025205,2]
[312207912,1705685453593,-386.54013427,0.00025205,2]
[312207914,1705685453603,-537.13,0.00025205,2]
[312207916,1705685453612,-500.0,0.00025205,2]
[312207918,1705685453621,-500.0,0.00025205,2]
[312207920,1705685453630,-500.0,0.00025205,2]
[312207921,1705685453642,-500.0,0.00025205,2]
[312207923,1705685453651,-500.0,0.00025205,2]
[312207924,1705685453660,-500.0,0.00025205,2]
[312207925,1705685453670,-500.0,0.00025205,2]
[312207927,1705685453679,-500.0,0.00025205,2]
[312207929,1705685453687,-500.0,0.00025205,2]
[312207931,1705685453696,-500.0,0.00025205,2]
[312207933,1705685453706,-500.0,0.00025205,2]
[312207935,1705685453715,-500.0,0.00025205,2]
[312207937,1705685453725,-500.0,0.00025205,2]
[312207939,1705685453734,-500.0,0.00025205,2]
[312207940,1705685453744,-500.0,0.00025205,2]
[312207941,1705685453753,-500.0,0.00025205,2]
[312207942,1705685453767,-500.0,0.00025205,2]
[312207943,1705685453776,-500.0,0.00025205,2]
[312207944,1705685453785,-500.0,0.00025205,2]
[312207945,1705685453794,-500.0,0.00025205,2]
[312207946,1705685453804,-480.44,0.00025205,2]
[312207948,1705685453813,-308.35,0.00025205,2]
[312207950,1705685453822,-500.0,0.00025205,2]
[312207951,1705685453831,-202.28575294,0.00025205,2]
[312207952,1705685453840,-500.0,0.00025205,2]
[312207953,1705685453853,-500.0,0.00025205,2]
[312207954,1705685453862,-500.0,0.00025205,2]
[312207956,1705685453871,-500.0,0.00025205,2]
[312207958,1705685453880,-571.57,0.00025205,2]
[312207960,1705685453890,-604.02,0.00025205,2]
[312207962,1705685453899,-500.0,0.00025205,2]
[312207964,1705685453909,-237.53,0.00025205,2]
[312207966,1705685453918,-500.0,0.00025205,2]
[312207968,1705685453927,-500.0,0.00025205,2]
[312207969,1705685453936,-326.5,0.00025205,2]
[312207970,1705685453945,-500.0,0.00025205,2]
[312207971,1705685453954,-500.0,0.00025205,2]
[312207972,1705685453964,-500.0,0.00025205,2]
[312207973,1705685453973,-500.0,0.00025205,2]
[312207974,1705685453987,-500.0,0.00025205,2]
[312207975,1705685453997,-500.0,0.00025205,2]
[312207976,1705685454009,-500.0,0.00025205,2]
[312207977,1705685454019,-552.63715554,0.00025205,2]
[312207978,1705685454030,-500.0,0.00025205,2]
[312207979,1705685454040,-512.68,0.00025205,2]
[312207980,1705685454049,-500.0,0.00025205,2]
[312207981,1705685454058,-186.8,0.00025205,2]
[312207982,1705685454068,-543.41,0.00025205,2]
[312207983,1705685454078,-500.0,0.00025205,2]
[312207984,1705685454087,-550.48,0.00025205,2]
[312207985,1705685454097,-223.55,0.00025205,2]
[312207986,1705685454106,-500.0,0.00025205,2]
[312207987,1705685454116,-500.0,0.00025205,2]
[312207988,1705685454125,-500.0,0.00025205,2]
[312207989,1705685454134,-500.0,0.00025205,2]
[312207990,1705685454144,-500.0,0.00025205,2]
[312207991,1705685454153,-500.0,0.00025205,2]
[312207992,1705685454162,-500.0,0.00025205,2]
[312207993,1705685454172,-352.07,0.00025205,2]
[312207994,1705685454181,-453.61,0.00025205,2]
[312207995,1705685454191,-500.0,0.00025205,2]
[312207996,1705685454200,-500.0,0.00025205,2]
[312207997,1705685454210,-500.0,0.00025205,2]
[312207998,1705685454220,-500.0,0.00025205,2]
[312207999,1705685454229,-500.0,0.00025205,2]
[312208000,1705685454238,-251.52,0.00025205,2]
[312208001,1705685454247,-500.0,0.00025205,2]
[312208002,1705685454259,-500.0,0.00025205,2]
[312208003,1705685454269,-500.0,0.00025205,7]
[312208004,1705685454278,-500.0,0.00025205,2]
[312208005,1705685454287,-563.38,0.00025205,2]
[312208006,1705685454297,-567.18,0.00025205,2]
[312208007,1705685454306,-500.0,0.00025205,2]
[312208008,1705685454315,-500.0,0.00025205,2]
[312208009,1705685454325,-500.0,0.00025205,2]
[312208010,1705685454334,-500.0,0.00025205,2]
[312208011,1705685454343,-159.28,0.00025205,2]
[312208012,1705685454352,-381.3,0.00025205,2]
[312208013,1705685454362,-500.0,0.00025205,2]
[312208014,1705685454371,-644.49,0.00025205,2]
[312208015,1705685454381,-500.0,0.00025205,2]
[312208016,1705685454390,-500.0,0.00025205,2]
[312208017,1705685454400,-500.0,0.00025205,2]
[312208018,1705685454410,-500.0,0.00025205,2]
[312208019,1705685454419,-500.0,0.00025205,2]
[312208020,1705685454428,-500.0,0.00025205,2]
[312208021,1705685454438,-545.49,0.00025205,2]
[312208022,1705685454449,-634.89,0.00025205,2]
[312208023,1705685454459,-500.0,0.00025205,2]
[312208024,1705685454468,-500.0,0.00025205,2]
[312208025,1705685454478,-313.18,0.00025205,2]
[312208026,1705685454488,-500.0,0.00025205,2]
[312208027,1705685454497,-500.0,0.00025205,2]
[312208028,1705685454509,-500.0,0.00025205,2]
[312208029,1705685454517,-500.0,0.00025205,2]
[312208030,1705685454526,-500.0,0.00025205,2]
[312208031,1705685454536,-500.0,0.00025205,2]
[312208032,1705685454546,-500.0,0.00025205,2]
[312208033,1705685454555,-362.14726363,0.00025205,2]
[312208034,1705685454565,-500.0,0.00025205,2]
[312208035,1705685454574,-500.0,0.00025205,2]
[312208036,1705685454584,-515.64,0.00025205,2]
[312208037,1705685454593,-500.0,0.00025205,2]
[312208038,1705685454602,-1854.09,0.00025205,2]
[312208039,1705685454611,-500.0,0.00025205,2]
[312208040,1705685454676,-500.0,0.00025205,2]
[312208041,1705685454685,-579.31,0.00025205,2]
[312208042,1705685454695,-500.0,0.00025205,2]
[312208043,1705685454704,-500.0,0.00025205,2]
[312208044,1705685454713,-156.1,0.00025205,2]
[312208045,1705685454722,-500.0,0.00025205,2]
[312208046,1705685454733,-500.0,0.00025205,2]
[312208047,1705685454744,-500.0,0.00025205,2]
[312208048,1705685454754,-500.0,0.00025205,2]
[312208049,1705685454764,-500.0,0.00025205,2]
[312208050,1705685454773,-496.23,0.00025205,2]
[312208051,1705685454782,-205.99,0.00025205,2]
[312208052,1705685454792,-585.98,0.00025205,2]
[312208053,1705685454802,-565.57,0.00025205,2]
[312208054,1705685454811,-574.32,0.00025205,2]
[312208055,1705685454820,-533.70077219,0.00025205,2]
[312208056,1705685454829,-500.0,0.00025205,2]
[312208057,1705685454839,-500.0,0.00025205,2]
[312208058,1705685454850,-307.54,0.00025205,2]
[312208059,1705685454859,-500.0,0.00025205,2]
[312208060,1705685454869,-500.0,0.00025205,2]
[312208061,1705685454879,-500.0,0.00025205,2]
[312208062,1705685454890,-500.0,0.00025205,2]
[312208063,1705685454898,-510.19,0.00025205,2]
[312208064,1705685454910,-500.0,0.00025205,2]
[312208065,1705685454919,-500.0,0.00025205,2]
[312208066,1705685454931,-500.0,0.00025205,2]
[312208067,1705685454940,-260.36,0.00025205,2]
[312208068,1705685454950,-168.47,0.00025205,2]
[312208069,1705685454959,-517.38,0.00025205,2]
[312208070,1705685454969,-500.0,0.00025205,2]
[312208071,1705685454979,-500.0,0.00025205,2]
[312208072,1705685454988,-500.0,0.00025205,2]
[312208073,1705685454999,-500.0,0.00025205,2]
[312208074,1705685455010,-500.0,0.00025205,2]
[312208075,1705685455019,-381.06,0.00025205,2]
[312208076,1705685455029,-500.0,0.00025205,2]
[312208077,1705685455038,-500.0,0.00025205,2]
[312208078,1705685455048,-500.0,0.00025205,2]
[312208079,1705685455057,-500.0,0.00025205,2]
[312208080,1705685455067,-500.0,0.00025205,2]
[312208081,1705685455076,-539.99,0.00025205,2]
[312208082,1705685455085,-500.0,0.00025205,2]
[312208083,1705685455095,-664.45,0.00025205,2]
[312208084,1705685455106,-500.0,0.00025205,2]
[312208085,1705685455115,-500.0,0.00025205,2]
[312208086,1705685455124,-372.94953016,0.00025205,2]
[312208087,1705685455134,-500.0,0.00025205,2]
[312208088,1705685455143,-500.0,0.00025205,2]
[312208089,1705685455152,-482.25,0.00025205,2]
[312208090,1705685455161,-216.12,0.00025205,2]
[312208091,1705685455170,-403.17,0.00025205,2]
[312208092,1705685455179,-500.0,0.00025205,2]
[312208093,1705685455188,-2378.86,0.00025205,2]
[312208094,1705685455197,-500.0,0.00025205,2]
[312208095,1705685455206,-690.28,0.00025205,2]
[312208096,1705685455215,-500.0,0.00025205,2]
[312208097,1705685455224,-500.0,0.00025205,2]
[312208098,1705685455233,-500.0,0.00025205,2]
[312208099,1705685455241,-342.41851182,0.00025205,2]
[312208100,1705685455250,-479.97,0.00025205,2]
[312208101,1705685455260,-500.0,0.00025205,2]
[312208102,1705685455269,-500.0,0.00025205,2]
[312208103,1705685455279,-500.0,0.00025205,2]
[312208104,1705685455288,-500.0,0.00025205,2]
[312208105,1705685455298,-500.0,0.00025205,2]
[312208106,1705685455308,-500.0,0.00025205,2]
[312208107,1705685455317,-500.0,0.00025205,2]
[312208108,1705685455326,-500.0,0.00025205,2]
[312208109,1705685455336,-626.72,0.00025205,2]
[312208110,1705685455346,-500.0,0.00025205,2]
[312208111,1705685455356,-500.0,0.00025205,2]
[312208112,1705685455365,-164.41,0.00025205,2]
[312208113,1705685455374,-500.0,0.00025205,2]
[312208114,1705685455386,-500.0,0.00025205,2]
[312208115,1705685455397,-500.0,0.00025205,2]
[312208116,1705685455407,-500.0,0.00025205,2]
[312208117,1705685455416,-500.0,0.00025205,2]
[312208118,1705685455427,-500.0,0.00025205,2]
[312208119,1705685455439,-500.0,0.00025205,2]
[312208120,1705685455450,-500.0,0.00025205,2]
[312208121,1705685455460,-607.81,0.00025205,2]
[312208122,1705685455471,-500.0,0.00025205,2]
[312208123,1705685455481,-500.0,0.00025205,2]
[312208124,1705685455490,-500.0,0.00025205,2]
[312208125,1705685455499,-500.0,0.00025205,2]
[312208126,1705685455510,-500.0,0.00025205,2]
[312208127,1705685455520,-500.0,0.00025205,2]
[312208128,1705685455529,-500.0,0.00025205,2]
[312208129,1705685455539,-500.0,0.00025205,2]
[312208130,1705685455549,-500.0,0.00025205,2]
[312208131,1705685455558,-500.0,0.00025205,2]
[312208132,1705685455567,-500.0,0.00025205,2]
[312208133,1705685455578,-500.0,0.00025205,2]
[312208134,1705685455589,-1938.43,0.00025205,2]
[312208135,1705685455599,-500.0,0.00025205,2]
[312208136,1705685455609,-1762.79,0.00025205,2]
[312208137,1705685455618,-500.0,0.00025205,2]
[312208138,1705685455629,-500.0,0.00025205,2]
[312208139,1705685455641,-185.86,0.00025205,2]
[312208140,1705685455651,-500.0,0.00025205,2]
[312208141,1705685455661,-500.0,0.00025205,2]
[312208142,1705685455672,-500.0,0.00025205,2]
[312208143,1705685455682,-11305.08,0.00025205,2]
[312208144,1705685455693,-500.0,0.00025205,2]
[312208145,1705685455703,-887.45,0.00025205,2]
[312208146,1705685455713,-500.0,0.00025205,2]
[312208147,1705685455728,-500.0,0.00025205,2]
[312208148,1705685455737,-500.0,0.00025205,2]
[312208149,1705685455748,-500.0,0.00025205,2]
[312208150,1705685455759,-1105.03,0.00025205,2]
[312208151,1705685455769,-500.0,0.00025205,2]
[312208152,1705685455779,-500.0,0.00025205,2]
[312208153,1705685455790,-500.0,0.00025205,2]
[312208154,1705685455800,-361.6691953,0.00025205,2]
[312208155,1705685455810,-500.0,0.00025205,2]
[312208156,1705685455820,-500.0,0.00025205,5]
[312208157,1705685455829,-1248.71,0.00025205,2]
[312208158,1705685455840,-500.0,0.00025205,2]
[312208159,1705685455851,-500.0,0.00025205,2]
[312208160,1705685455861,-410.34,0.00025205,2]
[312208161,1705685455870,-500.0,0.00025205,2]
[312208162,1705685455879,-500.0,0.00025205,2]
[312208163,1705685455888,-500.0,0.00025205,2]
[312208164,1705685455897,-505.47,0.00025205,2]
[312208165,1705685455906,-500.0,0.00025205,2]
[312208166,1705685455916,-500.0,0.00025205,2]
[312208167,1705685455925,-318.14,0.00025205,2]
[312208168,1705685455934,-280.91,0.00025205,2]
[312208169,1705685455943,-500.0,0.00025205,2]
[312208170,1705685455952,-500.0,0.00025205,2]
[312208171,1705685455961,-500.0,0.00025205,2]
[312208172,1705685455970,-2721.34,0.00025205,2]
[312208173,1705685455979,-2319.54,0.00025205,2]
[312208174,1705685455988,-500.0,0.00025205,2]
[312208175,1705685455998,-500.0,0.00025205,2]
[312208176,1705685456011,-500.0,0.00025205,2]
[312208177,1705685456021,-179.28,0.00025205,2]
[312208178,1705685456033,-509.99,0.00025205,2]
[312208179,1705685456042,-500.0,0.00025205,2]
[312208180,1705685456053,-1004.64,0.00025205,2]
[312208181,1705685456069,-500.0,0.00025205,2]
[312208182,1705685456078,-2057.73,0.00025205,2]
[312208183,1705685456090,-623.39,0.00025205,2]
[312208184,1705685456101,-500.0,0.00025205,2]
[312208185,1705685456111,-500.0,0.00025205,2]
[312208186,1705685456122,-500.0,0.00025205,2]
[312208187,1705685456132,-500.0,0.00025205,2]
[312208188,1705685456142,-500.0,0.00025205,2]
[312208189,1705685456152,-500.0,0.00025205,2]
[312208190,1705685456161,-500.0,0.00025205,2]
[312208191,1705685456170,-500.0,0.00025205,2]
[312208192,1705685456180,-500.0,0.00025205,2]
[312208193,1705685456189,-500.0,0.00025205,2]
[312208194,1705685456200,-500.0,0.00025205,2]
[312208195,1705685456213,-877.96,0.00025205,2]
[312208196,1705685456224,-500.0,0.00025205,2]
[312208197,1705685456235,-500.0,0.00025205,2]
[312208198,1705685456245,-500.0,0.00025205,2]
[312208199,1705685456254,-500.0,0.00025205,2]
[312208200,1705685456264,-607.66,0.00025205,2]
[312208201,1705685456274,-500.0,0.00025205,2]
[312208202,1705685456283,-1669.31,0.00025205,2]
[312208203,1705685456292,-500.0,0.00025205,2]
[312208204,1705685456302,-500.0,0.00025205,2]
[312208205,1705685456312,-536.55,0.00025205,2]
[312208206,1705685456323,-757.92,0.00025205,2]
[312208207,1705685456333,-494.52,0.00025205,2]
[312208208,1705685456344,-500.0,0.00025205,2]
[312208209,1705685456353,-770.03,0.00025205,2]
[312208210,1705685456362,-500.0,0.00025205,2]
[312208211,1705685456374,-500.0,0.00025205,2]
[312208212,1705685456385,-500.0,0.00025205,2]
[312208213,1705685456396,-500.0,0.00025205,2]
[312208214,1705685456406,-500.0,0.00025205,2]
[312208215,1705685456416,-500.0,0.00025205,2]
[312208216,1705685456426,-595.37,0.00025205,2]
[312208217,1705685456436,-500.0,0.00025205,2]
[312208218,1705685456446,-500.0,0.00025205,2]
[312208219,1705685456460,-500.0,0.00025205,2]
[312208220,1705685456469,-565.84,0.00025205,2]
[312208221,1705685456478,-500.0,0.00025205,2]
[312208222,1705685456488,-707.43,0.00025205,2]
[312208223,1705685456499,-582.3,0.00025205,2]
[312208224,1705685456509,-365.74,0.00025205,2]
[312208225,1705685456519,-500.0,0.00025205,2]
[312208226,1705685456529,-500.0,0.00025205,2]
[312208227,1705685456538,-852.84,0.00025205,2]
[312208228,1705685456548,-500.0,0.00025205,2]
[312208229,1705685456557,-622.55,0.00025205,2]
[312208230,1705685456567,-500.0,0.00025205,2]
[312208231,1705685456577,-500.0,0.00025205,5]
[312208232,1705685456587,-551.58,0.00025205,2]
[312208233,1705685456596,-500.0,0.00025205,2]
[312208234,1705685456606,-500.0,0.00025205,2]
[312208235,1705685456615,-500.0,0.00025205,2]
[312208236,1705685456624,-500.0,0.00025205,2]
[312208237,1705685456634,-500.0,0.00025205,2]
[312208238,1705685456643,-500.0,0.00025205,2]
[312208239,1705685456652,-500.0,0.00025205,2]
[312208240,1705685456662,-500.0,0.00025205,2]
[312208241,1705685456671,-500.0,0.00025205,2]
[312208242,1705685456680,-500.0,0.00025205,2]
[312208243,1705685456689,-166.37,0.00025205,2]
[312208244,1705685456699,-500.0,0.00025205,2]
[312208245,1705685456709,-500.0,0.00025205,2]
[312208246,1705685456718,-2113.32,0.00025205,2]
[312208247,1705685456727,-264.07056837,0.00025205,2]
[312208248,1705685457095,-235.92943163,0.00025205,2]
[312208249,1705685457107,-500.0,0.00025205,2]
[312208250,1705685457117,-500.0,0.00025205,2]
[312208251,1705685457127,-799.07056837,0.00025205,2]
[312208252,1705685457169,-500.0,0.00024657,2]
[312208253,1705685457178,-500.0,0.00024657,2]
[312208254,1705685457188,-433.05943163,0.00025205,2]
[312208255,1705685457197,-500.0,0.00025205,2]
[312208256,1705685457206,-500.34,0.00025205,2]
[312208257,1705685457216,-250.32,0.00025205,2]
[312208258,1705685457226,-500.0,0.00025205,2]
[312208259,1705685457236,-500.0,0.00025205,2]
[312208260,1705685457245,-500.0,0.00025205,2]
[312208261,1705685457255,-500.0,0.00025205,2]
[312208262,1705685457265,-438.39,0.00025205,2]
[312208263,1705685457274,-500.0,0.00025205,2]
[312208264,1705685457284,-304.92206181,0.00025205,2]
[312208265,1705685457293,-1241.61,0.00025205,2]
[312208266,1705685457303,-500.0,0.00025205,2]
[312208267,1705685457313,-1563.22,0.00025205,2]
[312208268,1705685457323,-500.0,0.00025205,2]
[312208269,1705685457333,-500.0,0.00025205,2]
[312208270,1705685457342,-188.90758242,0.00025236,2]
[312208271,1705685457352,-1128.73029174,0.00025238,2]
[312208272,1705685457361,-188.90758242,0.00025444,2]
[312208273,1705685457371,-500.0,0.00025477,2]
[312208274,1705685457379,-293.07443697,0.00025479,2]
[312208275,1705685457389,-537.13,0.00025479,2]
[312208276,1705685457398,-544.36,0.00025479,2]
[312208277,1705685457407,-500.0,0.00025479,2]
[312208278,1705685457416,-339.11815419,0.00025479,2]
[312208279,1705685457428,-160.88184581,0.00025479,2]
[312208280,1705685457441,-394.19,0.00025479,2]
[312208281,1705685457450,-500.0,0.00025479,2]
[312208282,1705685457459,-434.88186554,0.00025479,2]
[312208283,1705685457470,-65.11813446,0.00025479,2]
[312208284,1705685457479,-322.60920515,0.00025479,2]
[312208285,1705685457503,-286.15079485,0.00025479,2]
[312208286,1705685457514,-111.4047321,0.00025479,2]
[312208287,1705685457554,-500.0,0.00024931,2]
[312208288,1705685457564,-260.61904872,0.00025479,2]
[312208289,1705685457576,-142.05621918,0.00025479,2]
[312208290,1705685457586,-282.37,0.00025479,2]
[312208291,1705685457595,-562.92,0.00025479,2]
[312208292,1705685457604,-210.71,0.00025479,2]
[312208293,1705685457614,-113.37848807,0.00025479,2]
[312208294,1705685457627,-386.62151193,0.00025479,2]
[312208295,1705685457637,-500.0,0.00025479,2]
[312208296,1705685457646,-500.0,0.00025479,2]
[312208297,1705685457655,-500.0,0.00025479,2]
[312208298,1705685457665,-307.15,0.00025479,2]
[312208299,1705685457674,-500.0,0.00025479,2]
[312208300,1705685457684,-301.36890181,0.00025479,2]
[312208301,1705685457934,-500.0,0.00024657,2]
[312208302,1705685457944,-86.5484862,0.00024657,2]
[312208303,1705685457955,-413.4515138,0.00024657,2]
[312208304,1705685457965,-202.29,0.00024931,2]
[312208305,1705685457974,-425.51,0.00024931,2]
[312208306,1705685457984,-500.0,0.00025205,2]
[312208307,1705685457994,-211.77099471,0.00025479,2]
[312208308,1705685458004,-500.0,0.00025479,2]
[312208309,1705685458013,-500.0,0.00025479,2]
[312208310,1705685458023,-500.0,0.00025479,2]
[312208311,1705685458033,-68.92069984,0.00025479,2]
[312208312,1705685458045,-431.07930016,0.00025479,2]
[312208313,1705685458054,-270.59,0.00025479,2]
[312208314,1705685458064,-495.05,0.00025479,2]
[312208315,1705685458074,-500.0,0.00025479,2]
[312208316,1705685458084,-500.0,0.00025479,2]
[312208317,1705685458093,-457.38965376,0.00025479,2]
[312208318,1705685458102,-386.33708686,0.00025479,2]
[312208319,1705685458114,-113.66291314,0.00025479,2]